[Event "Klatov Bazar Besiny Cup 2018"]
[Site "Klatovy"]
[Date "2018.07.06"]
[Round "7"]
[White "Pulpan, Jakub"]
[Black "Bures, Jaroslav"]
[Result "0-1"]
[ECO "B12"]
[WhiteElo "2386"]
[BlackElo "2406"]
[Annotator "ChessBase"]
[PlyCount "66"]
[EventDate "2018.07.01"]
[EventType "swiss"]
[EventCountry "CZE"]
[SourceTitle "playchess.com"]
[Source "ChessBase"]
[SourceQuality "1"]
[TimeControl "40/7200:0"]

1. e4 {[%emt 0:00:00]} c6 {[%emt 0:00:00]} 2. d4 {[%emt 0:00:00]} d5 {[%emt 0:00:00]} 3. e5 {[%emt 0:00:00]} Bf5 {[%emt 0:00:00]} 4. Nf3 {[%emt 0:00:00]} e6 {[%emt 0:00:00]} 5. Be2 {[%emt 0:00:00]} c5 {[%emt 0:00:00]} 6. Be3 {[%emt 0:00:00]} Qb6 {[%emt 0:00:00]} 7. Nc3 {[%emt 0:00:00]} Nc6 {[%emt 0:00:00]} 8. O-O {[%emt 0:00:00]} Qxb2 {[%emt 0:00:00]} 9. Qe1 {[%emt 0:00:00]} cxd4 {[%emt 0:00:00]} 10. Bxd4 {[%emt 0:00:00]} Nxd4 {[%emt 0:00:00]} 11. Nxd4 {[%emt 0:00:00]} Bb4 {[%emt 0:00:00]} 12. Ndb5 {[%emt 0:03:05]} Ba5 {[%emt 0:00:00]} 13. Rb1 {[%emt 0:02:01]} Qxc2 {[%emt 0:00:00]} 14. Rc1 {[%emt 0:00:29]} Qb2 {[%emt 0:00:00]} 15. Qd1 {[%emt 0:01:32]} Kf8 {[%emt 0:06:57]} 16. Bd3 {[%emt 0:14:30]} Bxc3 {[%emt 0:13:06]} 17. Nxc3 {[%emt 0:10:12]} Ne7 {[%emt 0:00:08]} 18. Rc2 {[%emt 0:07:43]} Qb4 {[%emt 0:05:57]} 19. Qe2 {[%emt 0:15:32]} Bxd3 {[%emt 0:17:02]} 20. Qxd3 {[%emt 0:00:00]} Nc6 {[%emt 0:00:00]} 21. Rb1 {[%emt 0:09:20]} Qe7 {[%emt 0:00:00]} 22. Qg3 {[%emt 0:01:26]} h5 {[%emt 0:04:26]} 23. Nb5 {[%emt 0:04:31]} h4 {[%emt 0:00:00]} 24. Qe3 {[%emt 0:00:19]} f6 {[%emt 0:09:42]} 25. f4 {[%emt 0:02:44]} fxe5 {[%emt 0:03:03]} 26. fxe5 {[%emt 0:00:26]} Rh5 {[%emt 0:03:09]} 27. Nd6 {[%emt 0:04:49]} Nxe5 {[%emt 0:00:00]} 28. Nc8 {[%emt 0:05:29]} Qd8 {[%emt 0:12:20]} 29. Nxa7 {[%emt 0:04:45]} d4 {[%emt 0:10:26]} 30. Qb3 {[%emt 0:02:35]} d3 {[%emt 0:05:19]} 31. Rf2+ {[%emt 0:05:04]} Rf5 {[%emt 0:00:00]} 32. Rbf1 {[%emt 0:00:46]} Qd7 {[%emt 0:00:41]} 33. Qc3 {[%emt 0:01:21]} Rxf2 {[%emt 0:03:56]} 0-1

[Event "Klatov Bazar Besiny Cup 2018"]
[Site "Klatovy"]
[Date "2018.07.06"]
[Round "7"]
[White "Simek, Petr"]
[Black "Eret, Matous"]
[Result "1-0"]
[ECO "A44"]
[WhiteElo "2354"]
[BlackElo "2184"]
[Annotator "NA"]
[PlyCount "99"]
[EventDate "2018.07.01"]
[EventType "swiss"]
[EventCountry "CZE"]
[SourceTitle "playchess.com"]
[Source "ChessBase"]
[SourceQuality "1"]
[TimeControl "40/7200:0"]

1. d4 {[%emt 0:00:00]} c5 {[%emt 0:00:00]} 2. d5 {[%emt 0:00:00]} e5 {[%emt 0:00:00]} 3. e4 {[%emt 0:00:46]} d6 {[%emt 0:00:00]} 4. Nc3 {[%emt 0:00:16]} Nf6 {[%emt 0:00:00]} 5. Bb5+ {[%emt 0:00:07]} Nbd7 {[%emt 0:01:01]} 6. a4 {[%emt 0:00:00]} a6 {[%emt 0:01:14] A44: Semi-Benoni} 7. Bd3 {[%emt 0:02:01]} b6 {[%emt 0:00:46]} 8. Nf3 {[%emt 0:01:20]} g6 $146 {[%emt 0:07:00]} ({Predecessor:} 8... Be7 9. O-O Nf8 10. Nd2 Ng6 11. Nc4 O-O 12. a5 Nd7 13. axb6 Nxb6 14. Na5 Qc7 15. Qe2 {½-½ (15) Kuznetsov,G (2310)-Kharous,E (2371) Ekaterinburg 2007}) 9. h3 {[%emt 0:03:49]} Bg7 {[%emt 0:09:21]} 10. Be3 {[%emt 0:00:28]} Qc7 {[%emt 0:02:03]} 11. Qe2 {[%emt 0:12:50]} Nh5 {[%emt 0:01:18]} 12. g3 {[%emt 0:00:00]} O-O {[%emt 0:05:32]} 13. Nh4 {[%emt 0:01:49]} Ndf6 {[%emt 0:19:14]} 14. Kf1 {[%emt 0:08:23]} ({White should try} 14. Ng2 $16) 14... Bb7 {[%emt 0:03:20]} 15. Kg1 {[%emt 0:02:19]} Rfc8 {[%emt 0:02:58]} 16. Bc4 {[%emt 0:02:22]} Qe7 {[%emt 0:09:31]} 17. Kh2 {[%emt 0:02:06]} h6 {[%emt 0:02:55]} 18. Rhg1 {[%emt 0:04:32]} Re8 {[%emt 0:05:28]} 19. Rae1 {[%emt 0:17:44]} Bc8 {[%emt 0:02:36]} 20. Bd2 {[%emt 0:03:58]} Qd7 {[%emt 0:09:20]} 21. Qf1 {[%emt 0:00:00]} Nh7 {[%emt 0:00:00]} 22. Be2 {[%emt 0:02:26]} N5f6 {[%emt 0:02:55]} 23. Nf3 {[%emt 0:09:24]} Rf8 {[%emt 0:02:03]} 24. Rb1 {[%emt 0:04:13]} Ne8 {[%emt 0:00:25]} 25. g4 {[%emt 0:01:16]} Nc7 {[%emt 0:04:02]} 26. b4 {[%emt 0:02:40]} Kh8 {[%emt 0:02:51]} 27. bxc5 {[%emt 0:00:25]} bxc5 {[%emt 0:00:00]} 28. Rb6 {[%emt 0:01:21]} Qe7 {[%emt 0:00:00]} 29. Qc1 {[%emt 0:02:11]} g5 {[%emt 0:04:56]} 30. Be3 {[%emt 0:04:23]} Nf6 {[%emt 0:00:22]} 31. Nd2 {[%emt 0:00:25]} Nd7 {[%emt 0:00:00]} 32. Rb3 {[%emt 0:00:00]} Rd8 {[%emt 0:00:13]} 33. Nc4 {[%emt 0:00:00]} Nf8 {[%emt 0:00:03]} 34. Rb6 {[%emt 0:08:13]} Ne8 {[%emt 0:01:05]} 35. Bd1 {[%emt 0:02:32]} Ng6 {[%emt 0:00:38]} 36. Ne2 {[%emt 0:00:00]} Nf4 {[%emt 0:00:26]} 37. Ng3 $16 {[%emt 0:00:00]} Nf6 {[%emt 0:02:49]} 38. Bf3 {[%emt 0:02:03]} h5 {[%emt 0:02:03]} 39. Bxf4 {[%emt 0:04:25]} gxf4 {[%emt 0:02:28]} 40. Nf5 {[%emt 0:00:10]} Bxf5 {[%emt 0:00:00]} 41. gxf5 {[%emt 1:59:35]} Bh6 {[%emt 1:59:50]} 42. Qb2 {[%emt 0:00:37]} Rg8 {[%emt 0:00:07]} 43. Rxd6 {[%emt 0:00:28]} Rxg1 {[%emt 0:00:59]} 44. Kxg1 {[%emt 0:00:00]} Rg8+ {[%emt 0:00:32]} 45. Kf1 {[%emt 0:00:00]} Bg7 {[%emt 0:00:00]} 46. Qxe5 {[%emt 0:01:21]} Qxe5 {[%emt 0:01:38]} 47. Nxe5 {[%emt 0:00:00]} Rf8 {[%emt 0:00:03]} 48. Rd8 {[%emt 0:02:38]} Kg8 {[%emt 0:00:00]} 49. Rxf8+ {[%emt 0:00:00]} Kxf8 {[%emt 0:00:00]} 50. Nd3 {[%emt 0:00:00]} 1-0

[Event "Klatov Bazar Besiny Cup 2018"]
[Site "Klatovy"]
[Date "2018.07.06"]
[Round "7"]
[White "Hollan, Martin"]
[Black "Slovak, Kilian"]
[Result "1/2-1/2"]
[ECO "E90"]
[WhiteElo "2341"]
[BlackElo "2285"]
[Annotator "NA"]
[PlyCount "52"]
[EventDate "2018.07.01"]
[EventType "swiss"]
[EventCountry "CZE"]
[SourceTitle "playchess.com"]
[Source "ChessBase"]
[SourceQuality "1"]
[TimeControl "40/7200:0"]

{[%evp 10,35,39,37,32767,32767,45,32767,43,45,35,32767,54,15,35,0,0,-34,-32,-91,-97,-78,-114,-133,-84,-140,-160,-190]} 1. d4 {[%emt 0:00:20]} Nf6 {[%emt 0:00:00]} 2. c4 {[%emt 0:00:00]} g6 {[%emt 0:00:00]} 3. Nc3 {[%emt 0:00:00]} Bg7 {[%emt 0:00:00]} 4. e4 {[%emt 0:00:00]} d6 {[%emt 0:00:00]} 5. Nf3 {[%emt 0:00:00]} O-O {[%emt 0:00:00]} 6. h3 {[%emt 0:00:00]} e5 {[%emt 0:00:00]} 7. d5 {[%emt 0:00:00]} Nh5 {[%emt 0:00:44]} 8. g3 {[%emt 0:02:20] E90: King's Indian: Classical: Early deviations and 6 h3} a5 {[%emt 0:07:39] LiveBook: 93 Games} 9. Be2 {[%emt 0:00:43]} Na6 {[%emt 0:00:58]} 10. Bg5 {[%emt 0:00:00]} Qe8 {[%emt 0:01:55]} 11. Nh4 $146 {[%emt 0:03:50]} ({Predecessor:} 11. Nd2 Nc5 12. Be3 f6 13. Bxc5 dxc5 14. Bxh5 gxh5 15. g4 Qg6 {1-0 (32) Tomashevsky,E (2744)-Yuffa,D (2504) Doha 2015}) 11... Nf6 {[%emt 0:06:49]} 12. Qd2 {[%emt 0:00:41]} Nc5 {[%emt 0:03:17]} 13. Bf3 {[%emt 0:00:59]} Bd7 {[%emt 0:10:59]} 14. g4 {[%emt 0:07:24]} (14. Rd1 $11) 14... b5 {[%emt 0:07:45]} 15. cxb5 {[%emt 0:07:16]} Bxb5 {[%emt 0:01:57]} 16. Rg1 {[%emt 0:01:57]} Kh8 {[%emt 0:09:49]} 17. O-O-O {[%emt 0:21:33]} Rb8 {[%emt 0:14:44]} 18. Qc2 $19 {[%emt 0:10:18]} Bc4 {[%emt 0:06:29]} 19. Ng2 {[%emt 0:02:58]} Rb4 {[%emt 0:15:10]} 20. h4 {[%emt 0:06:36]} Qb8 {[%emt 0:05:53]} 21. h5 {[%emt 0:02:37]} h6 {[%emt 0:00:37]} 22. Be3 {[%emt 0:00:25]} Nfd7 {[%emt 0:04:57]} 23. g5 {[%emt 0:03:01]} Bb3 {[%emt 0:08:04]} 24. Qe2 {[%emt 0:24:35]} Bc4 {[%emt 0:02:02]} 25. Qc2 {[%emt 0:00:00]} Bb3 {[%emt 0:00:00]} 26. Qe2 {[%emt 0:00:00]} Bc4 {[%emt 0:00:19]} 1/2-1/2

[Event "Klatov Bazar Besiny Cup 2018"]
[Site "Klatovy"]
[Date "2018.07.06"]
[Round "7"]
[White "Vyprachticky, David"]
[Black "Straka, Vojtech"]
[Result "1/2-1/2"]
[ECO "D41"]
[WhiteElo "2301"]
[BlackElo "2379"]
[Annotator "NA"]
[PlyCount "143"]
[EventDate "2018.07.01"]
[EventType "swiss"]
[EventCountry "CZE"]
[SourceTitle "playchess.com"]
[Source "ChessBase"]
[SourceQuality "1"]
[TimeControl "40/7200:0"]

1. d4 {[%emt 0:00:00] CB} Nf6 {[%emt 0:01:31]} 2. Nf3 {[%emt 0:00:00]} e6 {[%emt 0:00:33]} 3. c4 {[%emt 0:00:00]} c5 {[%emt 0:00:00]} 4. Nc3 {[%emt 0:00:00]} d5 {[%emt 0:17:40]} 5. cxd5 {[%emt 0:00:00]} Nxd5 {[%emt 0:00:00]} 6. e4 {[%emt 0:00:00]} Nxc3 {[%emt 0:00:00]} 7. bxc3 {[%emt 0:00:00]} cxd4 {[%emt 0:00:00]} 8. cxd4 {[%emt 0:00:00]} Bb4+ {[%emt 0:00:00]} 9. Bd2 {[%emt 0:00:00]} Bxd2+ {[%emt 0:00:00]} 10. Qxd2 {[%emt 0:00:00]} O-O {[%emt 0:00:00]} 11. Rc1 {[%emt 0:00:00]} Nc6 {[%emt 0:06:17] D41: Damengambit (Verbesserte Tarrasch-Verteidigung)} 12. Be2 {[%emt 0:03:16]} Qb6 {[%emt 0:05:41]} 13. O-O {[%emt 0:07:23]} Rd8 {[%emt 0:01:36] LiveBook: 3 Games} 14. Rc4 {[%emt 0:03:34]} Bd7 {[%emt 0:19:46]} 15. Bd3 {[%emt 0:10:42]} Qa5 {[%emt 0:14:32]} 16. Qb2 {[%emt 0:08:51] [#]} Be8 $146 {[%emt 0:06:36]} ({Vorgänger:} 16... Rac8 17. Rfc1 Nb4 18. Bf1 Nc6 19. Rc5 {1-0 (38) Ivanchuk,V (2739)-Ganguly,S (2619) Caleta 2014 CBM 159 [CB]}) 17. Rfc1 {[%emt 0:09:05]} Rab8 {[%emt 0:14:25]} 18. R1c3 {[%emt 0:12:56]} Qh5 {[%emt 0:06:43]} 19. Rc5 {[%emt 0:08:04]} Qh6 {[%emt 0:00:00]} 20. d5 {[%emt 0:10:52]} exd5 {[%emt 0:00:39]} 21. exd5 {[%emt 0:00:00]} Ne7 {[%emt 0:00:00]} 22. R3c4 {[%emt 0:02:07]} Rxd5 {[%emt 0:09:20]} 23. Rxd5 {[%emt 0:00:00]} Nxd5 {[%emt 0:00:00]} 24. Rh4 {[%emt 0:00:00]} Qf6 {[%emt 0:00:00]} 25. Bxh7+ {[%emt 0:00:00]} Kf8 {[%emt 0:00:00]} 26. Qa3+ {[%emt 0:00:09]} Qe7 {[%emt 0:00:00]} 27. Qxa7 {[%emt 0:01:07]} Rc8 {[%emt 0:00:21]} 28. g3 {[%emt 0:07:22]} g6 {[%emt 0:02:49]} 29. Qd4 {[%emt 0:04:33]} Nf6 {[%emt 0:00:38]} 30. Rf4 {[%emt 0:01:24]} Kg7 {[%emt 0:00:00]} 31. g4 {[%emt 0:00:28]} Kxh7 {[%emt 0:04:03]} 32. Rxf6 {[%emt 0:00:24]} Rc1+ {[%emt 0:00:40]} 33. Kg2 {[%emt 0:01:18]} Bc6 {[%emt 0:00:00]} 34. Qf4 {[%emt 0:01:25]} Bxf3+ {[%emt 0:01:16]} 35. Qxf3 {[%emt 0:00:07]} Rc7 {[%emt 0:00:00]} 36. Qf4 {[%emt 0:02:26]} Kg8 {[%emt 0:00:58]} 37. Rd6 {[%emt 0:04:20]} Rd7 {[%emt 0:00:24]} 38. Rd4 {[%emt 0:01:42]} Rxd4 {[%emt 0:00:25]} 39. Qxd4 {[%emt 0:00:00]} g5 {[%emt 0:00:00]} 40. Qd5 {[%emt 0:00:01]} Kg7 {[%emt 0:00:00]} 41. a4 {[%emt 2:04:51]} f6 {[%emt 1:59:35]} 42. a5 {[%emt 0:00:00]} Qc7 {[%emt 0:00:00]} 43. h3 {[%emt 0:02:08]} Qe7 {[%emt 0:00:00]} 44. h4 {[%emt 0:00:42]} gxh4 {[%emt 0:00:00]} 45. Kh3 {[%emt 0:00:20]} Qc7 {[%emt 0:00:00]} 46. Qf5 {[%emt 0:01:12]} Qc6 {[%emt 0:00:51]} 47. Kxh4 {[%emt 0:00:14]} Qg2 {[%emt 0:00:01]} 48. Qf4 {[%emt 0:00:00]} Qh1+ {[%emt 0:00:00]} 49. Kg3 {[%emt 0:00:00]} Qg1+ {[%emt 0:00:00]} 50. Kf3 {[%emt 0:00:00]} Qd1+ {[%emt 0:00:00]} 51. Kg2 {[%emt 0:00:00]} Qd5+ {[%emt 0:00:00]} 52. Qf3 {[%emt 0:00:00]} Qxa5 {[%emt 0:00:00]} 53. Qxb7+ {[%emt 0:00:00]} Kf8 {[%emt 0:00:00]} 54. Qf3 {[%emt 0:00:00]} Kg7 {[%emt 0:00:00]} 55. Qe3 {[%emt 0:00:05]} Qd5+ {[%emt 0:00:00]} 56. f3 {[%emt 0:00:00]} Kf7 {[%emt 0:00:00]} 57. Qf4 {[%emt 0:00:36]} Qc5 {[%emt 0:00:00]} 58. Qe4 {[%emt 0:00:00]} Kg7 {[%emt 0:00:00]} 59. f4 {[%emt 0:00:11]} Qd6 {[%emt 0:00:00]} 60. Kg3 {[%emt 0:00:59]} Qc5 {[%emt 0:00:00]} 61. Kg2 {[%emt 0:00:00]} Qd6 {[%emt 0:00:00]} 62. Kh3 {[%emt 0:00:00]} Qc5 {[%emt 0:00:00]} 63. Qe6 {[%emt 0:00:37]} Qc7 {[%emt 0:00:00]} 64. Qe4 {[%emt 0:00:14]} Qc5 {[%emt 0:00:00]} 65. Qb7+ {[%emt 0:01:09]} Kf8 {[%emt 0:00:00]} 66. Qe4 {[%emt 0:01:28]} Kg7 {[%emt 0:00:00]} 67. f5 {[%emt 0:00:46]} Qc3+ {[%emt 0:00:00]} 68. Kh4 {[%emt 0:00:00]} Qc7 {[%emt 0:00:00]} 69. Kh3 {[%emt 0:00:02]} Qc3+ {[%emt 0:00:00]} 70. Kg2 {[%emt 0:00:02]} Qd2+ {[%emt 0:00:00]} 71. Kg3 {[%emt 0:00:00]} Qc3+ {[%emt 0:00:00]} 72. Kg2 {[%emt 0:00:00]} 1/2-1/2

[Event "Klatov Bazar Besiny Cup 2018"]
[Site "Klatovy"]
[Date "2018.07.06"]
[Round "7"]
[White "Mejzlik, Ondrej"]
[Black "Xu, XianLiang"]
[Result "0-1"]
[ECO "A22"]
[WhiteElo "2287"]
[BlackElo "2430"]
[Annotator "ChessBase"]
[PlyCount "100"]
[EventDate "2018.07.01"]
[EventType "swiss"]
[EventCountry "CZE"]
[SourceTitle "playchess.com"]
[Source "ChessBase"]
[SourceQuality "1"]
[TimeControl "40/7200:0"]

1. c4 {[%emt 0:00:00]} e5 {[%emt 0:00:00]} 2. Nc3 {[%emt 0:00:00]} Nf6 {[%emt 0:00:00]} 3. g3 {[%emt 0:00:00]} Bb4 {[%emt 0:00:00]} 4. Bg2 {[%emt 0:00:00]} O-O {[%emt 0:00:00]} 5. Qb3 {[%emt 0:01:58]} Bxc3 {[%emt 0:10:21]} 6. Qxc3 {[%emt 0:01:01]} d6 {[%emt 0:05:21]} 7. d3 {[%emt 0:00:00]} Nc6 {[%emt 0:00:21]} 8. b4 {[%emt 0:00:55]} Re8 {[%emt 0:03:07]} 9. b5 {[%emt 0:04:15]} Ne7 {[%emt 0:02:58]} 10. h3 {[%emt 0:13:15]} a6 {[%emt 0:03:27]} 11. a4 {[%emt 0:00:21]} d5 {[%emt 0:26:24]} 12. Bg5 {[%emt 0:12:24]} axb5 {[%emt 0:03:24]} 13. axb5 {[%emt 0:00:00]} Rxa1+ {[%emt 0:00:38]} 14. Qxa1 {[%emt 0:00:00]} dxc4 {[%emt 0:06:23]} 15. dxc4 {[%emt 0:00:35]} Nf5 {[%emt 0:00:40]} 16. Nf3 {[%emt 0:22:04]} e4 {[%emt 0:02:24]} 17. Bxf6 {[%emt 0:22:58]} gxf6 {[%emt 0:00:49]} 18. Nh4 {[%emt 0:00:00]} e3 {[%emt 0:16:48]} 19. Nxf5 {[%emt 0:07:40]} Qd2+ {[%emt 0:00:14]} 20. Kf1 {[%emt 0:00:00]} Bxf5 {[%emt 0:00:00]} 21. Bf3 {[%emt 0:13:57]} exf2 {[%emt 0:01:25]} 22. Kxf2 {[%emt 0:13:25]} Qe3+ {[%emt 0:00:07]} 23. Kg2 {[%emt 0:00:00]} Be4 {[%emt 0:00:32]} 24. Qf1 {[%emt 0:00:00]} Qd4 {[%emt 0:04:26]} 25. g4 {[%emt 0:03:48]} Qxc4 {[%emt 0:00:42]} 26. Kg3 {[%emt 0:00:26]} Qxb5 {[%emt 0:08:12]} 27. Bxe4 {[%emt 0:00:00]} Qe5+ {[%emt 0:00:08]} 28. Qf4 {[%emt 0:00:00]} Qxe4 {[%emt 0:00:00]} 29. Rc1 {[%emt 0:00:00]} Qxe2 {[%emt 0:02:32]} 30. Kh4 {[%emt 0:00:00]} c6 {[%emt 0:03:30]} 31. Qxf6 {[%emt 0:00:00]} Qe7 {[%emt 0:00:32]} 32. Qg5+ {[%emt 0:00:08]} Qxg5+ {[%emt 0:00:22]} 33. Kxg5 {[%emt 0:00:00]} Kg7 {[%emt 0:00:00]} 34. Kf5 {[%emt 0:00:00]} Re6 {[%emt 0:02:17]} 35. Rc3 {[%emt 0:00:00]} b5 {[%emt 0:00:27]} 36. h4 {[%emt 0:00:00]} Kf8 {[%emt 0:01:51]} 37. g5 {[%emt 0:00:00]} Ke7 {[%emt 0:00:17]} 38. Ra3 {[%emt 0:00:00]} Rd6 {[%emt 0:00:38]} 39. Ke4 {[%emt 0:00:00]} Ke6 {[%emt 0:01:11]} 40. Rc3 {[%emt 0:00:00]} Kd7 {[%emt 0:01:18]} 41. Rf3 {[%emt 1:59:13]} Ke7 {[%emt 2:00:14]} 42. Ra3 {[%emt 0:00:00]} b4 {[%emt 0:00:46]} 43. Ra7+ {[%emt 0:00:08]} Rd7 {[%emt 0:00:00]} 44. Ra6 {[%emt 0:00:00]} Rb7 {[%emt 0:00:29]} 45. Rxc6 {[%emt 0:00:00]} b3 {[%emt 0:00:00]} 46. Rc1 {[%emt 0:00:00]} b2 {[%emt 0:00:00]} 47. Rb1 {[%emt 0:00:00]} Ke6 {[%emt 0:00:00]} 48. Kf4 {[%emt 0:00:09]} Rb4+ {[%emt 0:00:00]} 49. Kg3 {[%emt 0:00:00]} Kf5 {[%emt 0:00:00]} 50. Rf1+ {[%emt 0:00:00]} Ke5 0-1

[Event "Klatov Bazar Besiny Cup 2018"]
[Site "Klatovy"]
[Date "2018.07.06"]
[Round "7"]
[White "Parizek, Vojtech"]
[Black "Simet, Martin"]
[Result "1-0"]
[ECO "C41"]
[WhiteElo "2242"]
[BlackElo "2182"]
[Annotator "NA"]
[PlyCount "55"]
[EventDate "2018.07.01"]
[EventType "swiss"]
[EventCountry "CZE"]
[SourceTitle "playchess.com"]
[Source "ChessBase"]
[SourceQuality "1"]
[TimeControl "40/7200:0"]

{[%evp 10,38,29,31,32767,32767,32767,21,31,32767,22,22,23,20,21,-16,0,10,13,-13,-11,-8,50,29,49,42,54,32767,32767,32767,145]} 1. e4 {[%emt 0:00:00]} e5 {[%emt 0:00:00]} 2. Nf3 {[%emt 0:00:00]} d6 {[%emt 0:00:00]} 3. d4 {[%emt 0:00:00]} exd4 {[%emt 0:00:00]} 4. Nxd4 {[%emt 0:01:03]} Nf6 {[%emt 0:00:00]} 5. Nc3 {[%emt 0:00:00]} Be7 {[%emt 0:00:00]} 6. Be2 {[%emt 0:08:41]} O-O {[%emt 0:00:00]} 7. O-O {[%emt 0:00:00]} Re8 {[%emt 0:00:00]} 8. f4 {[%emt 0:04:07]} Bf8 {[%emt 0:00:00]} 9. Bf3 {[%emt 0:00:55]} c5 {[%emt 0:00:00]} 10. Nde2 {[%emt 0:04:11] LiveBook: 49 Games C41: Philidor Defence} Nc6 {[%emt 0:01:04]} 11. Kh1 {[%emt 0:13:53]} Bd7 {[%emt 0:05:29]} 12. Be3 {[%emt 0:04:33]} (12. Qd3 b5 13. a3 b4 14. Nd5 Rb8 15. b3 a5 16. Nxf6+ Qxf6 17. Rb1 Rbd8 {0-1 (26) Steingrimsson,H (2576)-Mamedyarov,S (2791) Antalya 2017}) 12... b5 {[%emt 0:11:35]} 13. Ng3 {[%emt 0:09:54] [#]} Rb8 $146 {[%emt 0:05:49]} ({Predecessor:} 13... b4 14. Nd5 Nxd5 15. Qxd5 Qc7 16. Rad1 Rad8 17. Qh5 g6 {0-1 (35) Skripchenko,A (2461)-Kazhgaleyev,M (2606) Pontoise 2006}) 14. Nd5 {[%emt 0:14:12]} Nxd5 {[%emt 0:08:31]} 15. Qxd5 {[%emt 0:01:22]} Na5 {[%emt 0:03:47]} (15... Nd4 $5 16. Bxd4 Be6 $11) 16. b3 {[%emt 0:06:03]} Bc6 {[%emt 0:07:16]} 17. Qh5 {[%emt 0:05:16]} d5 {[%emt 0:16:52]} 18. exd5 {[%emt 0:05:10]} g6 {[%emt 0:00:17]} 19. Qg5 {[%emt 0:01:09]} Be7 $16 {[%emt 0:11:33]} (19... Qxg5 $142 20. fxg5 Rxe3) 20. Qg4 {[%emt 0:12:13]} Bd7 {[%emt 0:17:37]} 21. f5 {[%emt 0:02:30]} h5 {[%emt 0:00:00]} 22. Qh3 {[%emt 0:00:28]} Bf6 {[%emt 0:11:31]} 23. Rae1 {[%emt 0:01:30]} h4 {[%emt 0:05:30]} 24. Bg4 {[%emt 0:02:33]} Qc8 {[%emt 0:01:15]} 25. fxg6 {[%emt 0:05:45]} Bxg4 {[%emt 0:05:45]} 26. gxf7+ {[%emt 0:00:00]} Kf8 {[%emt 0:03:13]} 27. fxe8=Q+ {[%emt 0:01:10]} Kxe8 {[%emt 0:00:00]} 28. Bg5+ {[%emt 0:00:15]} 1-0

[Event "Klatov Bazar Besiny Cup 2018"]
[Site "Klatovy"]
[Date "2018.07.06"]
[Round "7"]
[White "Soural, Jan"]
[Black "Kopta, Pavel"]
[Result "1/2-1/2"]
[ECO "A62"]
[WhiteElo "2192"]
[BlackElo "2210"]
[Annotator "NA"]
[PlyCount "38"]
[EventDate "2018.07.01"]
[EventType "swiss"]
[EventCountry "CZE"]
[SourceTitle "playchess.com"]
[Source "ChessBase"]
[SourceQuality "1"]
[TimeControl "40/7200:0"]

{[%evp 8,38,35,21,41,32767,32767,32767,32767,32767,17,32767,22,32767,32767,33,32767,38,50,32767,52,41,32,32,26,39,52,46,45,52,47,55,54]} 1. d4 {[%emt 0:00:00]} Nf6 {[%emt 0:00:00]} 2. c4 {[%emt 0:00:00]} e6 {[%emt 0:00:00]} 3. g3 {[%emt 0:00:00]} c5 {[%emt 0:00:00]} 4. d5 {[%emt 0:00:00]} exd5 {[%emt 0:00:00]} 5. cxd5 {[%emt 0:00:00]} d6 {[%emt 0:00:00]} 6. Nc3 {[%emt 0:00:00]} g6 {[%emt 0:00:00]} 7. Bg2 {[%emt 0:00:00]} Bg7 {[%emt 0:00:00]} 8. Nf3 {[%emt 0:00:00]} O-O {[%emt 0:00:00]} 9. O-O {[%emt 0:00:00]} Re8 {[%emt 0:00:00]} 10. Bf4 {[%emt 0:00:00]} a6 {[%emt 0:04:22]} 11. a4 {[%emt 0:00:00]} h6 {[%emt 0:06:38]} 12. Qc1 {[%emt 0:05:51]} g5 {[%emt 0:09:37]} 13. Bd2 {[%emt 0:01:05]} Bf5 {[%emt 0:02:17]} 14. h4 {[%emt 0:05:33]} g4 {[%emt 0:03:06]} 15. Nh2 {[%emt 0:01:44] LiveBook: 3 Games} h5 {[%emt 0:00:28]} 16. Bg5 {[%emt 0:03:57]} Qd7 {[%emt 0:08:31]} 17. Bh6 {[%emt 0:12:27]} Bg6 {[%emt 0:03:56]} 18. Bxg7 {[%emt 0:02:25]} Kxg7 {[%emt 0:00:07]} 19. Qf4 {[%emt 0:15:08]} Qe7 $14 {[%emt 0:03:47]} 1/2-1/2

[Event "Klatov Bazar Besiny Cup 2018"]
[Site "Klatovy"]
[Date "2018.07.06"]
[Round "7"]
[White "Hurdzan, Tomas"]
[Black "Hausner, Ivan"]
[Result "1-0"]
[ECO "B81"]
[WhiteElo "2164"]
[BlackElo "2321"]
[Annotator "NA"]
[PlyCount "59"]
[EventDate "2018.07.01"]
[EventType "swiss"]
[EventCountry "CZE"]
[SourceTitle "playchess.com"]
[Source "ChessBase"]
[SourceQuality "1"]
[TimeControl "40/7200:0"]

{[%evp 10,55,39,45,32767,32767,32767,32767,32767,32767,32767,47,60,32767,32767,32767,137,32767,201,212,32767,197,208,213,218,225,247,221,222,103,106,102,93,113,144,127,106,96,125,123,156,177,32767,225,227,240,32767,216]} 1. e4 {[%emt 0:00:00]} c5 {[%emt 0:00:00]} 2. Nf3 {[%emt 0:00:00]} e6 {[%emt 0:00:00]} 3. d4 {[%emt 0:00:00]} cxd4 {[%emt 0:00:00]} 4. Nxd4 {[%emt 0:00:00]} Nf6 5. Nc3 {[%emt 0:00:00]} d6 {[%emt 0:00:00]} 6. g4 {[%emt 0:00:00]} h6 {[%emt 0:00:00]} 7. h4 {[%emt 0:00:00]} a6 {[%emt 0:00:00]} 8. Rg1 {[%emt 0:00:00]} g6 {[%emt 0:00:00] B81: Sicilian Scheveningen: Keres Attack} (8... d5 9. exd5 Nxd5 10. Nxd5 Qxd5 11. Be3 Be7 12. Qd2 Bxh4 13. Qc3 Nd7 14. O-O-O Qc5 15. Qb3 Qa5 16. Bg2 O-O 17. Rh1 Nc5 {1-0 (39) Harikrishna,P (2737)-Kempinski,R (2637) Germany 2016}) 9. g5 {[%emt 0:00:00]} hxg5 {[%emt 0:00:00]} 10. hxg5 {[%emt 0:01:31]} Nfd7 {[%emt 0:00:00]} 11. Be3 {[%emt 0:01:02]} Nc6 {[%emt 0:00:00]} 12. Qd2 {[%emt 0:00:40]} Nde5 {[%emt 0:04:44]} 13. Be2 $146 {[%emt 0:00:59]} ({Predecessor:} 13. O-O-O Rh7 14. Be2 Qc7 15. f4 Nxd4 16. Bxd4 Nc4 17. Bxc4 Qxc4 {1-0 (60) Rohacek,M (2246)-Federic,J (2269) Slovakia 2014}) 13... Rh3 {[%emt 0:03:48]} 14. f4 {[%emt 0:06:18]} Nxd4 {[%emt 0:00:00]} 15. Bxd4 {[%emt 0:02:47]} Nc6 {[%emt 0:09:48] [#]} 16. Bf6 $1 {[%emt 0:02:36]} Be7 {[%emt 0:00:00]} 17. O-O-O {[%emt 0:02:09]} Bxf6 {[%emt 0:00:00]} 18. gxf6 {[%emt 0:00:00]} Qxf6 {[%emt 0:00:00] [#]} 19. Qxd6 {[%emt 0:14:58]} (19. f5 $1 $18 {and White stays clearly on top.}) 19... Qe7 {[%emt 0:07:56]} 20. Qd2 {[%emt 0:00:00]} Bd7 {[%emt 0:01:00]} 21. Bf1 {[%emt 0:18:03]} Rh4 {[%emt 0:02:07]} (21... Rh8 $142) 22. e5 {[%emt 0:05:34]} O-O-O {[%emt 0:00:03]} 23. Qf2 {[%emt 0:02:14]} Be8 {[%emt 0:02:42]} 24. Bg2 {[%emt 0:04:18]} Rxd1+ {[%emt 0:00:00]} 25. Rxd1 {[%emt 0:00:00]} g5 {[%emt 0:03:52]} 26. Ne4 {[%emt 0:11:47]} Rxf4 {[%emt 0:00:00]} 27. Qb6 {[%emt 0:00:00]} Kb8 {[%emt 0:01:04]} 28. Nc5 $18 {[%emt 0:02:05]} Rb4 {[%emt 0:00:35]} 29. Nxa6+ {[%emt 0:00:00]} Kc8 {[%emt 0:00:00]} 30. Nxb4 {[%emt 0:00:08]} 1-0